fUSD/lending_fUSD_20260203
["ID","MTS","AMOUNT","RATE_DAILY","PERIOD"]
[404399487,1770105043916,-2729.5575983,0.00016438,2]
[404399488,1770105043926,-2729.5575983,0.00016438,2]
[404399489,1770105043935,-2729.5575983,0.00016438,2]
[404399490,1770105043945,-2729.5575983,0.00016438,2]
[404399491,1770105043954,-2729.5575983,0.00016438,2]
[404399492,1770105043964,-2729.5575983,0.00016438,2]
[404399493,1770105043974,-2729.5575983,0.00016438,2]
[404399494,1770105043983,-2729.5575983,0.00016438,2]
[404399495,1770105043992,-2729.5575983,0.00016438,2]
[404399496,1770105044002,-2729.5575983,0.00016438,2]
[404399497,1770105044012,-2729.5575983,0.00016438,2]
[404399498,1770105044022,-2729.5575983,0.00016438,2]
[404399499,1770105044032,-2729.5575983,0.00016438,2]
[404399500,1770105044041,-2729.5575983,0.00016438,2]
[404399501,1770105044050,-2729.5575983,0.00016438,2]
[404399502,1770105044060,-2729.5575983,0.00016438,2]
[404399503,1770105044069,-2729.5575983,0.00016438,2]
[404399504,1770105044079,-2729.5575983,0.00016438,2]
[404399505,1770105044089,-2679.92927832,0.00016438,2]
[404399506,1770105044099,-2679.92927832,0.00016438,2]
[404399507,1770105044113,-2679.92927832,0.00016438,2]
[404399508,1770105044122,-2679.92927832,0.00016438,2]
[404399509,1770105044131,-2679.92927832,0.00016438,2]
[404399510,1770105044141,-2679.92927832,0.00016438,2]
[404399511,1770105044150,-2679.92927832,0.00016438,2]
[404399512,1770105044160,-2679.92927832,0.00016438,2]
[404399513,1770105044170,-2679.92927832,0.00016438,2]
[404399514,1770105044180,-2679.92927832,0.00016438,2]
[404399515,1770105044191,-2679.92927832,0.00016438,2]
[404399516,1770105044200,-4677.32,0.00016438,2]
[404399517,1770105044210,-200.0,0.00016438,2]
[404399518,1770105044220,-1000.0,0.00016515,2]
[404399519,1770105044230,-1084.09055279,0.00016525,2]
[404399520,1770105044240,-200.05997466,0.00016546,2]
[404399521,1770105044249,-4555.60071213,0.00016605,2]
[404399522,1770105044259,-201.93286099,0.00016715,2]
[404399523,1770105044269,-464.55,0.0001693,2]
[404399524,1770105044279,-300.0,0.00017,2]
[404399525,1770105044289,-500.0,0.00017,2]
[404399526,1770105044299,-500.0,0.00017,5]
[404399527,1770105044309,-500.0,0.00017,2]
[404399528,1770105044319,-500.0,0.00017,2]
[404399529,1770105044328,-160.0,0.00017,7]
[404399530,1770105044338,-2092.0,0.00017,2]
[404399531,1770105044347,-500.0,0.00017026,2]
[404399532,1770105044357,-1000.0,0.00017112,2]
[404399533,1770105044367,-500.0,0.00017178,2]
[404399534,1770105044377,-1000.0,0.0001726,2]
[404399535,1770105044387,-346.92554585,0.00017261,2]
[404399536,1770105044396,-747.8093786,0.00017262,2]
[404399537,1770105044406,-599.60298507,0.00017262,2]
[404399538,1770105044415,-209.40437684,0.00017263,2]
[404399539,1770105044424,-5888.0,0.00017378,2]
[404399540,1770105044434,-172.53,0.00017381,2]
[404399541,1770105044443,-172.53,0.00017381,2]
[404399542,1770105044453,-176.85,0.00017381,2]
[404399543,1770105044462,-172.53,0.00017381,2]
[404399544,1770105044471,-172.53,0.00017381,2]
[404399545,1770105044481,-172.53,0.00017381,2]
[404399546,1770105044491,-172.53,0.00017381,2]
[404399547,1770105044501,-180.29,0.00017381,2]
[404399548,1770105044511,-172.53,0.00017381,2]
[404399549,1770105044521,-180.29,0.00017381,2]
[404399550,1770105044530,-172.53,0.00017381,2]
[404399551,1770105044540,-172.53,0.00017381,2]
[404399552,1770105044549,-180.29,0.00017381,2]
[404399553,1770105044559,-371.76186134,0.00017399,2]
[404399554,1770105044568,-3347.0,0.00017401,2]
[404399555,1770105044578,-200.0,0.00017482,2]
[404399556,1770105044588,-400.0,0.000175,6]
[404399557,1770105044597,-1000.0,0.00017534,2]
[404399558,1770105044607,-25837.1765527,0.00017537,2]
[404399559,1770105044617,-400.0,0.000176,6]
[404399560,1770105044627,-5888.0,0.0001764,2]
[404399561,1770105044636,-587.8745622,0.0001764,2]
[404399562,1770105044645,-5888.0,0.00017656,2]
[404399563,1770105044655,-328.2844758,0.000177,7]
[404399564,1770105044664,-400.0,0.000177,6]
[404399565,1770105044673,-1000.0,0.00017709,2]
[404399566,1770105044682,-150.0,0.00017732,2]
[404399567,1770105044692,-1000.0,0.00017749,2]
[404399568,1770105044701,-1000.0,0.00017751,2]
[404399569,1770105044710,-1000.0,0.00017753,2]
[404399570,1770105044719,-150.0,0.00017763,2]
[404399571,1770105044728,-1000.0,0.00017771,2]
[404399572,1770105044738,-150.0,0.00017781,2]
[404399573,1770105044747,-150.0,0.00017782,2]
[404399574,1770105044758,-150.0,0.00017784,2]
[404399575,1770105044768,-157.95285948,0.00017788,2]
[404399576,1770105044777,-1000.0,0.00017798,2]
[404399577,1770105044787,-1911.41410949,0.00017799,2]
[404399578,1770105044798,-1000.0,0.000178,2]
[404399579,1770105044807,-994.0,0.000178,6]
[404399580,1770105044817,-250.0,0.00017808,20]
[404399581,1770105044827,-285.815377,0.00017808,20]
[404399582,1770105044837,-1000.0,0.00017808,2]
[404399583,1770105044846,-217.15233878,0.00017811,2]
[404399584,1770105045059,-1000.0,0.00017813,2]
[404399585,1770105045068,-2000.0,0.0001782,2]
[404399586,1770105045078,-2000.0,0.0001782,2]
[404399587,1770105045087,-2000.0,0.0001782,2]
[404399588,1770105045097,-2000.0,0.0001782,2]
[404399589,1770105045108,-150.0,0.00017822,2]
[404399590,1770105045118,-150.0,0.00017826,2]
[404399591,1770105045127,-150.0,0.00017826,2]
[404399592,1770105045137,-150.0,0.00017829,2]
[404399593,1770105045146,-150.0,0.00017831,2]
[404399594,1770105045157,-1000.0,0.00017839,2]
[404399595,1770105045166,-1000.0,0.00017843,2]
[404399596,1770105045175,-150.0,0.00017854,2]
[404399597,1770105045187,-200.0,0.00017855,2]
[404399598,1770105045197,-200.0,0.00017856,2]
[404399599,1770105045206,-25000.0,0.00017865,3]
[404399600,1770105045216,-1000.0,0.00017865,2]
[404399601,1770105045225,-1000.0,0.00017865,2]
[404399602,1770105045234,-1000.0,0.00017865,2]
[404399603,1770105045244,-1000.0,0.00017865,2]
[404399604,1770105045253,-1000.0,0.00017865,2]
[404399605,1770105045263,-1000.0,0.00017865,2]
[404399606,1770105045272,-150.0,0.00017867,2]
[404399607,1770105045282,-1000.0,0.00017869,2]
[404399608,1770105045292,-150.0,0.0001787,2]
[404399609,1770105045301,-1000.0,0.00017871,2]
[404399610,1770105045311,-25000.0,0.00017874,3]
[404399611,1770105045320,-1000.0,0.00017878,2]
[404399612,1770105045330,-25000.0,0.00017882,3]
[404399613,1770105045339,-1000.0,0.00017888,2]
[404399614,1770105045349,-983.42551089,0.00017889,2]
[404399615,1770105045358,-5888.0,0.00017891,2]
[404399616,1770105045367,-25000.0,0.00017891,3]
[404399617,1770105045377,-25000.0,0.000179,3]
[404399618,1770105045386,-160.0,0.000179,3]
[404399619,1770105045395,-7798.7438,0.000179,2]
[404399620,1770105045405,-500.0,0.000179,2]
[404399621,1770105045415,-10140.7131,0.000179,2]
[404399622,1770105045424,-10000.0,0.000179,2]
[404399623,1770105045433,-23106.24832845,0.000179,3]
[404399624,1770105045443,-1000.0,0.000179,2]
[404399625,1770105045452,-4555.60071213,0.000179,2]
[404399626,1770105045461,-5734.49198754,0.000179,2]
[404399627,1770105045472,-17981.0,0.000179,2]
[404399628,1770105045481,-5888.0,0.00017901,2]
[404399629,1770105045491,-1000.0,0.00017903,2]
[404399630,1770105045500,-1000.0,0.00017921,2]
[404399631,1770105045510,-1000.0,0.0001793,2]
[404399632,1770105045520,-1000.0,0.00017931,2]
[404399633,1770105045530,-1000.0,0.00017933,2]
[404399634,1770105045539,-1000.0,0.00017939,2]
[404399635,1770105045549,-1000.0,0.00017948,2]
[404399636,1770105045558,-1000.0,0.00017954,2]
[404399637,1770105045568,-1000.0,0.00017958,2]
[404399638,1770105045577,-150.0,0.00017975,2]
[404399639,1770105045587,-1000.0,0.00017975,2]
[404399640,1770105045598,-1000.0,0.00017977,2]
[404399641,1770105045607,-6883.1152638,0.00017982,2]
[404399642,1770105045617,-500.87084133,0.00017982,2]
[404399643,1770105045627,-1000.0,0.00017987,2]
[404399644,1770105045636,-1000.0,0.00017987,2]
[404399645,1770105045646,-8841.1753011,0.00017994,2]
[404399646,1770105045655,-206.49286951,0.00017997,2]
[404399647,1770105045665,-151.0,0.00017997,2]
[404399648,1770105045674,-155.0,0.00017999,2]
[404399649,1770105045684,-300.0,0.00017999,2]
[404399650,1770105045693,-300.0,0.00017999,2]
[404399651,1770105045704,-300.0,0.00017999,2]
[404399652,1770105045714,-3862042.96233539,0.00018,2]
[404399654,1770105046860,-206.84,9.465e-05,2]
[404399655,1770105046870,-151.0,0.00013983,2]
[404399656,1770105046880,-151.0,0.00013983,2]
[404399657,1770105046889,-398.04,0.00017381,2]
[404399658,1770105046900,-1136.32701054,0.00017982,2]
[404399659,1770105046970,-603.41291798,0.00017982,2]
[404399660,1770105046982,-1786.9332,0.00017982,2]
[404399661,1770105046993,-5807.05069107,0.00017982,2]
[404399682,1770105303763,160.24023767,0.0001,5]
[404399687,1770105466271,1275.651145,8.587e-05,2]
[404399688,1770105487680,2480.856365,7.945e-05,2]
[404399689,1770105517867,-3061.79517621,8.63e-05,2]
[404399690,1770105576147,-300.0,8.68e-05,2]
[404399691,1770105576170,-250.0,8.692e-05,2]
[404399692,1770105577001,310.87785836,0.00023,120]
[404399695,1770105677044,9450.0,8.49e-05,2]
[404399696,1770105677067,6901.47,8.49e-05,2]
[404399697,1770105677509,3098.53,8.49e-05,2]
[404399698,1770105677529,4594.71,8.49e-05,2]
[404399700,1770105730162,197.75499751,0.00014,7]
[404399703,1770105757111,5405.29,8.63e-05,2]
[404399704,1770105757142,10000.0,8.63e-05,2]
[404399705,1770105757173,10000.0,8.63e-05,2]
[404399706,1770105757201,10000.0,8.63e-05,2]
[404399707,1770105757230,10000.0,8.63e-05,2]
[404399708,1770105757258,10000.0,8.63e-05,2]
[404399709,1770105757288,10000.0,8.63e-05,2]
[404399710,1770105757316,10000.0,8.63e-05,2]
[404399711,1770105757344,10000.0,8.63e-05,2]
[404399712,1770105757372,10000.0,8.63e-05,2]
[404399713,1770105757400,10000.0,8.63e-05,2]
[404399714,1770105757438,10000.0,8.63e-05,2]
[404399715,1770105757468,10000.0,8.63e-05,2]
[404399716,1770105757496,10000.0,8.63e-05,2]
[404399717,1770105757524,10000.0,8.63e-05,2]
[404399718,1770105757552,10000.0,8.63e-05,2]
[404399719,1770105757896,10000.0,8.63e-05,2]
[404399720,1770105757926,10000.0,8.63e-05,2]
[404399721,1770105757954,10000.0,8.63e-05,2]
[404399722,1770105757983,10000.0,8.63e-05,2]
[404399723,1770105758011,10000.0,8.63e-05,2]
[404399724,1770105758040,10000.0,8.63e-05,2]
[404399725,1770105758067,10000.0,8.63e-05,2]
[404399726,1770105758095,10000.0,8.63e-05,2]
[404399727,1770105758125,10000.0,8.63e-05,2]
[404399728,1770105758155,10000.0,8.63e-05,2]
[404399729,1770105758183,10000.0,8.63e-05,2]
[404399730,1770105758211,10000.0,8.63e-05,2]
[404399731,1770105758244,10000.0,8.63e-05,2]
[404399732,1770105758273,10000.0,8.63e-05,2]
[404399733,1770105758302,10000.0,8.63e-05,2]
[404399734,1770105758332,10000.0,8.63e-05,2]
[404399735,1770105758360,10000.0,8.63e-05,2]
[404399736,1770105758388,10000.0,8.63e-05,2]
[404399737,1770105758416,10000.0,8.63e-05,2]
[404399738,1770105758448,1266.0,8.63e-05,2]
[404399740,1770105772545,-181.61710695,8.629e-05,2]
[404399741,1770105772575,-500.0,8.629e-05,2]
[404399742,1770105772607,-228.69382586,8.629e-05,2]
[404399743,1770105772637,-500.0,8.629e-05,2]
[404399744,1770105772670,-500.0,8.629e-05,2]
[404399745,1770105772700,-500.0,8.629e-05,2]
[404399746,1770105772733,-500.0,8.629e-05,2]
[404399747,1770105772767,-500.0,8.629e-05,2]
[404399748,1770105772802,-629.90094416,8.629e-05,2]
[404399750,1770105781874,150.0,8.629e-05,2]
[404399751,1770105782370,300.0,8.629e-05,2]
[404399753,1770105854319,151.0,8.627e-05,2]
[404399755,1770105869644,531.31454228,8.63e-05,2]
[404399756,1770105901639,787.27170378,8.629e-05,2]
[404399757,1770105901665,412.72829622,8.629e-05,2]
[404399758,1770105913678,242.14,8.6e-05,2]
[404399759,1770105949086,500.0,8.629e-05,2]
[404399760,1770105962366,150.0,8.629e-05,2]
[404399761,1770105962559,300.0,8.629e-05,2]
[404399762,1770105967540,8395.14170378,8.061e-05,2]
[404399763,1770105967570,10000.01,8.061e-05,2]
[404399764,1770105967596,6780.79829622,8.061e-05,2]
[404399765,1770105972298,151.0,8.627e-05,2]
[404399766,1770105999932,354.20969486,8.63e-05,2]
[404399767,1770106029897,685.37,8.219e-05,2]
[404399768,1770106032828,609.94214869,8.63e-05,2]
[404399769,1770106040430,1418.68986023,8.63e-05,2]
[404399770,1770106040455,2404.30479813,8.63e-05,2]
[404399771,1770106075258,7595.70520187,8.53e-05,2]
[404399772,1770106075293,10000.01,8.53e-05,2]
[404399773,1770106089336,151.0,8.527e-05,2]
[404399774,1770106131049,236.13979656,8.53e-05,2]
[404399775,1770106141684,150.0,8.529e-05,2]
[404399776,1770106142201,300.0,8.529e-05,2]
[404399778,1770106160609,2548.66310558,8.53e-05,2]
[404399779,1770106201666,1200.0,8.529e-05,2]
[404399780,1770106212685,151.0,8.527e-05,2]
[404399781,1770106213381,151.0,8.527e-05,2]
[404399786,1770106231888,-3540.27357432,8.53e-05,2]
[404399787,1770106231904,-1059.18764589,8.53e-05,2]
[404399788,1770106231916,-1694.059,8.53e-05,2]
[404399789,1770106231927,-2929.71303019,8.53e-05,2]
[404399790,1770106231939,-1247.39962148,8.53e-05,2]
[404399791,1770106231955,-3759.15475901,8.53e-05,2]
[404399792,1770106231966,-676.92004919,8.53e-05,2]
[404399793,1770106231983,-27840.96937552,8.53e-05,2]
[404399794,1770106232089,-528.12118031,8.53e-05,2]
[404399795,1770106232100,-1905.14323361,8.53e-05,2]
[404399796,1770106232112,-1741.76684916,8.53e-05,2]
[404399797,1770106232124,-3558.18510261,8.53e-05,2]
[404399798,1770106232136,-429.03935746,8.53e-05,2]
[404399804,1770106238509,-3200051.71373808,8.53e-05,2]
[404399910,1770106240033,-1290.94224244,8.53e-05,2]
[404399911,1770106240045,-330.86533881,8.53e-05,2]
[404399912,1770106240344,-229820.83070005,8.53e-05,2]
[404399913,1770106240354,-4121.603,8.53e-05,2]
[404399914,1770106240363,-2500.0,8.53e-05,2]
[404399915,1770106240375,-860658.0324,8.53e-05,2]
[404399916,1770106240385,-5761.311,8.53e-05,2]
[404399917,1770106240396,-1306.99135264,8.63e-05,2]
[404399918,1770106240406,-1184.03311277,8.63e-05,2]
[404399919,1770106240417,-89284.0951,8.63e-05,2]
[404399920,1770106240427,-300.0,8.635e-05,2]
[404399921,1770106240437,-302.51445876,8.639e-05,2]
[404399922,1770106240453,-250.0,8.649e-05,2]
[404399923,1770106240465,-500.0,8.667e-05,2]
[404399924,1770106240475,-685.37,8.676e-05,2]
[404399925,1770106240484,-250.0,8.683e-05,2]
[404399926,1770106240494,-4249.859,8.73e-05,2]
[404399927,1770106240504,-368.725,8.73e-05,2]
[404399928,1770106240514,-9999.99,8.73e-05,2]
[404399929,1770106240524,-150.99,8.73e-05,2]
[404399930,1770106240536,-9999.99,8.73e-05,2]
[404399931,1770106240546,-3298.8,8.73e-05,2]
[404399932,1770106240556,-299.99,8.73e-05,2]
[404399933,1770106240567,-999.99,8.73e-05,2]
[404399934,1770106240577,-9999.99,8.73e-05,2]
[404399935,1770106240587,-9999.99,8.73e-05,2]
[404399936,1770106240597,-150.99,8.73e-05,2]
[404399937,1770106240607,-1064.27,8.797e-05,2]
[404399938,1770106240616,-398.0,8.814e-05,2]
[404399939,1770106240626,-33292.3487,8.832e-05,2]
[404399940,1770106240642,-7798.7438,8.832e-05,2]
[404399941,1770106240651,-10000.0,8.832e-05,2]
[404399942,1770106240663,-2617.0576,8.832e-05,2]
[404399943,1770106240672,-3514.49,8.874e-05,2]
[404399944,1770106240682,-3514.49,8.897e-05,2]
[404399945,1770106240691,-3514.49,8.921e-05,2]
[404399946,1770106240701,-3514.49,8.944e-05,2]
[404399947,1770106240712,-3514.49,8.967e-05,2]
[404399948,1770106240723,-3514.49,8.991e-05,2]
[404399949,1770106240732,-3514.49,9.014e-05,2]
[404399950,1770106240742,-5963.37,9.036e-05,2]
[404399951,1770106240751,-3514.49,9.037e-05,2]
[404399952,1770106240761,-3514.49,9.061e-05,2]
[404399953,1770106240772,-3514.49,9.084e-05,2]
[404399954,1770106240783,-3514.49,9.107e-05,2]
[404399955,1770106240794,-3514.49,9.131e-05,2]
[404399956,1770106240804,-685.37,9.132e-05,2]
[404399957,1770106240814,-500.0,9.133e-05,2]
[404399958,1770106240823,-3514.49,9.154e-05,2]
[404399959,1770106240833,-3514.49,9.177e-05,2]
[404399960,1770106240843,-3514.49,9.201e-05,2]
[404399961,1770106240853,-500.0,9.201e-05,2]
[404399962,1770106240863,-3514.49,9.224e-05,2]
[404399963,1770106240874,-3514.49,9.247e-05,2]
[404399964,1770106240884,-3514.49,9.271e-05,2]
[404399965,1770106240896,-3514.49,9.294e-05,2]
[404399966,1770106240906,-3514.49,9.317e-05,2]
[404399967,1770106240915,-255.0,9.382e-05,2]
[404399968,1770106240924,-420.0,9.382e-05,2]
[404399969,1770106240933,-1680.0,9.382e-05,2]
[404399970,1770106240942,-500.0,9.493e-05,2]
[404399971,1770106240952,-250.0,9.493e-05,2]
[404399972,1770106240961,-193.0,9.493e-05,2]
[404399973,1770106240970,-300.0,9.493e-05,2]
[404399974,1770106240979,-254.47974801,9.493e-05,2]
[404399975,1770106240988,-300.0,9.493e-05,2]
[404399976,1770106240997,-5147.37,9.505e-05,2]
[404399977,1770106241006,-685.37,9.589e-05,2]
[404399978,1770106241015,-151.0,0.0001,2]
[404399979,1770106241024,-151.0,0.0001,2]
[404399980,1770106241033,-151.0,0.0001,2]
[404399981,1770106241047,-151.0,0.0001,2]
[404399982,1770106241061,-151.0,0.0001,2]
[404399983,1770106241071,-151.0,0.0001,2]
[404399984,1770106241081,-151.0,0.0001,2]
[404399985,1770106241090,-151.0,0.0001,2]
[404399986,1770106241099,-151.0,0.0001,2]
[404399987,1770106241109,-151.0,0.0001,2]
[404399988,1770106241119,-151.0,0.0001,2]
[404399989,1770106241129,-151.0,0.0001,2]
[404399990,1770106241138,-151.0,0.0001,2]
[404399991,1770106241148,-151.0,0.0001,2]
[404399992,1770106241157,-151.0,0.0001,2]
[404399993,1770106241168,-151.0,0.0001,2]
[404399994,1770106241178,-151.0,0.0001,2]
[404399995,1770106241189,-151.0,0.0001,2]
[404399996,1770106241199,-151.0,0.0001,2]
[404399997,1770106241209,-151.0,0.0001,2]
[404399998,1770106241219,-170.34718645,0.0001,2]
[404399999,1770106241228,-183.18333193,0.0001,2]
[404400000,1770106241238,-150.01391884,0.0001,2]
[404400001,1770106241248,-169.96770097,0.0001,2]
[404400002,1770106241258,-685.37,0.00010046,2]
[404400003,1770106241269,-1600.0,0.00010264,2]
[404400004,1770106241278,-433.0,0.00010321,2]
[404400005,1770106241289,-159.0,0.00010321,2]
[404400006,1770106241299,-2351.0,0.00010321,2]
[404400007,1770106241310,-685.37,0.00010502,2]
[404400008,1770106241320,-6042.35870635,0.000109,2]
[404400009,1770106241329,-6042.35870632,0.000109,2]
[404400010,1770106241339,-685.37,0.00010959,2]
[404400011,1770106241348,-4063.43121006,0.00011099,2]
[404400012,1770106241358,-4063.43121004,0.00011099,2]
[404400013,1770106241368,-4063.43121004,0.00011099,2]
[404400014,1770106241377,-4063.43121004,0.00011099,2]
[404400015,1770106241387,-64562.46346345,0.00011099,2]
[404400016,1770106241396,-64562.46346341,0.00011099,2]
[404400017,1770106241406,-64562.46346341,0.00011099,2]
[404400018,1770106241415,-150.01391884,0.00011164,2]
[404400019,1770106241429,-464.55,0.00011164,2]
[404400020,1770106241439,-6042.35870632,0.00011207,2]
[404400021,1770106241448,-21529.03,0.00011233,2]
[404400022,1770106241458,-4063.43121004,0.00011262,2]
[404400023,1770106241472,-250.0,0.00011271,2]
[404400024,1770106241482,-736.0,0.00011353,2]
[404400025,1770106241492,-3292.0,0.00011353,2]
[404400026,1770106241503,-500.0,0.0001137,2]
[404400027,1770106241512,-685.37,0.00011416,2]
[404400028,1770106241522,-64562.46346341,0.00011533,2]
[404400029,1770106241534,-1600.0,0.00011547,2]
[404400030,1770106241544,-3393.83018374,0.000116,2]
[404400031,1770106241554,-60241.77010179,0.00011652,2]
[404400032,1770106241564,-685.37,0.00011872,2]
[404400033,1770106241574,-7693.24,0.00011886,2]
[404400034,1770106241584,-4063.43121004,0.00011945,2]
[404400035,1770106241593,-151.0,0.0001199,2]
[404400036,1770106241603,-685.37,0.00012329,2]
[404400037,1770106241613,-150.01391884,0.00012329,2]
[404400038,1770106241623,-1252.0,0.00012487,2]
[404400039,1770106241633,-4609.0,0.00012488,2]
[404400040,1770106241643,-237.37949804,0.00012514,2]
[404400041,1770106241652,-626.44825104,0.00012514,2]
[404400042,1770106241662,-1105.12897013,0.00012514,2]
[404400043,1770106241672,-64562.46346341,0.00012534,2]
[404400044,1770106241682,-6042.35870632,0.00012546,2]
[404400045,1770106241691,-4063.43121004,0.00012628,2]
[404400046,1770106241701,-1653.20684589,0.00012664,2]
[404400047,1770106241711,-1600.0,0.0001283,2]
[404400048,1770106241720,-500.0,0.00012877,2]
[404400049,1770106241730,-271.01,0.00012877,2]
[404400050,1770106241739,-2548.66310557,0.00013165,2]
[404400051,1770106241749,-183.18333192,0.00013215,2]
[404400052,1770106241758,-4063.43121004,0.00013311,2]
[404400053,1770106241768,-3240.0,0.00013425,2]
[404400054,1770106241777,-401.0,0.00013485,2]
[404400055,1770106241786,-401.0,0.00013495,2]
[404400056,1770106241796,-64562.46346341,0.00013536,2]
[404400057,1770106241809,-401.0,0.00013565,2]
[404400058,1770106241819,-500.0,0.00013698,2]
[404400059,1770106241828,-501.81901913,0.00013698,2]
[404400060,1770106241838,-500.0,0.00013698,2]
[404400061,1770106241847,-500.0,0.00013698,2]
[404400062,1770106241857,-500.0,0.00013698,2]
[404400063,1770106241866,-500.0,0.00013698,2]
[404400064,1770106241876,-500.0,0.00013698,2]
[404400065,1770106241885,-500.0,0.00013698,2]
[404400066,1770106241895,-500.0,0.00013698,2]
[404400067,1770106241904,-500.0,0.00013698,2]
[404400068,1770106241914,-500.0,0.00013698,2]
[404400069,1770106241923,-500.0,0.00013698,2]
[404400070,1770106241933,-500.0,0.00013698,2]
[404400071,1770106241943,-340.45778603,0.00013698,2]
[404400072,1770106241953,-509.06540724,0.00013698,2]
[404400073,1770106241962,-500.0,0.00013698,2]
[404400074,1770106241971,-500.0,0.00013698,2]
[404400075,1770106241981,-500.0,0.00013698,2]
[404400076,1770106241991,-500.0,0.00013698,2]
[404400077,1770106242000,-545.58231824,0.00013698,2]
[404400078,1770106242010,-552.61203619,0.00013698,2]
[404400079,1770106242019,-500.0,0.00013698,2]
[404400080,1770106242029,-500.0,0.00013698,2]
[404400081,1770106242039,-500.0,0.00013698,2]
[404400082,1770106242048,-500.0,0.00013698,2]
[404400083,1770106242059,-500.0,0.00013698,2]
[404400084,1770106242069,-500.0,0.00013698,2]
[404400085,1770106242079,-500.0,0.00013698,2]
[404400086,1770106242088,-500.0,0.00013698,2]
[404400087,1770106242098,-371.76186134,0.00013698,2]
[404400088,1770106242108,-500.0,0.00013698,2]
[404400089,1770106242119,-500.0,0.00013698,2]
[404400090,1770106242128,-500.0,0.00013698,2]
[404400091,1770106242138,-438.97921379,0.00013698,2]
[404400092,1770106242148,-452.02134495,0.00013698,2]
[404400093,1770106242158,-199.38200897,0.00013698,2]
[404400094,1770106242168,-500.0,0.00013698,2]
[404400095,1770106242177,-500.0,0.00013698,2]
[404400096,1770106242192,-500.0,0.00013698,2]
[404400097,1770106242207,-500.0,0.00013698,2]
[404400098,1770106242217,-500.0,0.00013698,2]
[404400099,1770106242227,-500.0,0.00013698,2]
[404400100,1770106242236,-500.0,0.00013698,2]
[404400101,1770106242247,-500.0,0.00013698,2]
[404400102,1770106242256,-500.0,0.00013698,2]
[404400103,1770106242266,-222.83714718,0.00013698,2]
[404400104,1770106242276,-9681.08,0.00013699,2]
[404400105,1770106242286,-500.0,0.000137,2]
[404400106,1770106242295,-500.0,0.000137,2]
[404400107,1770106242305,-500.0,0.000137,2]
[404400108,1770106242316,-500.0,0.000137,2]
[404400109,1770106242327,-6453.0,0.00013737,2]
[404400110,1770106242337,-457.0,0.00013741,2]
[404400111,1770106242346,-6042.35870632,0.00013884,2]
[404400112,1770106242357,-151.0,0.00013991,2]
[404400113,1770106242367,-4063.43121004,0.00013994,2]
[404400114,1770106242378,-1600.0,0.00014113,2]
[404400115,1770106242387,-1000.0,0.00014248,2]
[404400116,1770106242396,-1000.0,0.00014248,2]
[404400117,1770106242406,-1001.21553048,0.00014248,2]
[404400118,1770106242416,-64562.46346341,0.00014537,2]
[404400119,1770106242426,-150.01391884,0.00014658,2]
[404400120,1770106242436,-4063.43121004,0.00014677,2]
[404400121,1770106242446,-18183.0,0.00014777,2]
[404400122,1770106242457,-495.7739334,0.00014796,2]
[404400123,1770106242471,-369.98194845,0.00014796,2]
[404400124,1770106242481,-250.0,0.00015,2]
[404400125,1770106242491,-9035.0,0.0001511,2]
[404400126,1770106242500,-6042.35870632,0.00015223,2]
[404400127,1770106242511,-464.55,0.00015302,2]
[404400128,1770106242521,-160.0,0.00015359,2]
[404400129,1770106242531,-1600.0,0.00015396,2]
[404400130,1770106242542,-20293.34,0.00015429,2]
[404400131,1770106242552,-64562.46346341,0.00015538,2]
[404400132,1770106242561,-151.0,0.00015577,2]
[404400133,1770106242571,-156.587,0.00015577,2]
[404400134,1770106242584,-162.380719,0.00015577,2]
[404400135,1770106242593,-157.73690742,0.00015577,2]